[Event "Titled Tuesday Blitz January 10 Late 2023"]
[White "Borges Feria, Yasel"]
[Black "Kamsky, Gata"]
[WhiteFideId "3504921"]
[BlackFideId "2000024"]
[WhiteElo "2439"]
[BlackElo "2665"]
[Result "1-0"]
[Round "09"]
[TimeControl "180+2"]
[Date "2023.01.10"]
[WhiteClock "0:00:04"]
[BlackClock "0:00:07"]

1. e4 {[%clk 0:00:00]}  g6 {[%clk 0:00:00]} 2. d4 {[%clk 0:02:57]}  Bg7 {[%clk 0:02:58]} 3. Nc3 {[%clk 0:02:55]}  d6 {[%clk 0:02:57]} 4. Bg5 {[%clk 0:02:55]}  h6 {[%clk 0:02:58]} 5. Be3 {[%clk 0:02:52]}  a6 {[%clk 0:02:57]} 6. Qd2 {[%clk 0:02:49]}  b5 {[%clk 0:02:57]} 7. f3 {[%clk 0:02:44]}  Bb7 {[%clk 0:02:57]} 8. h4 {[%clk 0:02:41]}  e6 {[%clk 0:02:54]} 9. O-O-O {[%clk 0:02:35]}  Nd7 {[%clk 0:02:51]} 10. Kb1 {[%clk 0:02:29]}  Ngf6 {[%clk 0:02:51]} 11. g4 {[%clk 0:02:27]}  Qe7 {[%clk 0:02:50]} 12. g5 {[%clk 0:02:24]}  hxg5 {[%clk 0:02:47]} 13. Bxg5 {[%clk 0:02:20]}  b4 {[%clk 0:02:45]} 14. Nce2 {[%clk 0:02:21]}  a5 {[%clk 0:01:50]} 15. Nh3 {[%clk 0:02:19]}  e5 {[%clk 0:01:50]} 16. d5 {[%clk 0:02:10]}  Nc5 {[%clk 0:01:48]} 17. Nf2 {[%clk 0:02:04]}  Qd7 {[%clk 0:01:44]} 18. Ng3 {[%clk 0:01:55]}  Bc8 {[%clk 0:01:39]} 19. Bc4 {[%clk 0:01:36]}  Nh7 {[%clk 0:01:08]} 20. Qe2 {[%clk 0:01:25]}  Ba6 {[%clk 0:01:06]} 21. Bxa6 {[%clk 0:01:22]}  Nxa6 {[%clk 0:01:03]} 22. Be3 {[%clk 0:01:16]}  Nf6 {[%clk 0:01:03]} 23. Bg5 {[%clk 0:01:13]}  Nh5 {[%clk 0:01:03]} 24. Nxh5 {[%clk 0:01:11]}  Rxh5 {[%clk 0:01:03]} 25. Ng4 {[%clk 0:01:05]}  Nc5 {[%clk 0:01:03]} 26. Rhg1 {[%clk 0:01:03]}  Rb8 {[%clk 0:01:02]} 27. f4 {[%clk 0:01:00]}  Qb5 {[%clk 0:00:59]} 28. Qf3 {[%clk 0:00:54]}  b3 {[%clk 0:00:55]} 29. cxb3 {[%clk 0:00:47]}  a4 {[%clk 0:00:55]} 30. Bf6 {[%clk 0:00:44]}  axb3 {[%clk 0:00:55]} 31. a3 {[%clk 0:00:40]}  Bf8 {[%clk 0:00:55]} 32. fxe5 {[%clk 0:00:37]}  dxe5 {[%clk 0:00:38]} 33. Bxe5 {[%clk 0:00:34]}  Nd7 {[%clk 0:00:35]} 34. Bc3 {[%clk 0:00:33]}  Qc4 {[%clk 0:00:33]} 35. Rgf1 {[%clk 0:00:25]}  Rh7 {[%clk 0:00:26]} 36. Ne3 {[%clk 0:00:23]}  Qa4 {[%clk 0:00:25]} 37. e5 {[%clk 0:00:17]}  Bxa3 {[%clk 0:00:23]} 38. e6 {[%clk 0:00:14]}  Bd6 {[%clk 0:00:23]} 39. exd7+ {[%clk 0:00:10]}  Kxd7 {[%clk 0:00:20]} 40. Rd4 {[%clk 0:00:07]}  Qa2+ {[%clk 0:00:20]} 41. Kc1 {[%clk 0:00:07]}  Re8 {[%clk 0:00:19]} 42. Ng4 {[%clk 0:00:07]}  Kc8 {[%clk 0:00:20]} 43. Nf6 {[%clk 0:00:02]}  Rhh8 {[%clk 0:00:16]} 44. Nxe8 {[%clk 0:00:03]}  Rxe8 {[%clk 0:00:11]} 45. Kd2 {[%clk 0:00:03]}  f5 {[%clk 0:00:11]} 46. Re1 {[%clk 0:00:03]}  Rxe1 {[%clk 0:00:10]} 47. Kxe1 {[%clk 0:00:03]}  Qb1+ {[%clk 0:00:08]} 48. Ke2 {[%clk 0:00:04]}  Qh1 {[%clk 0:00:07]} 49. Qxh1 {[%clk 0:00:04]} 1-0


[Site "https://www.chess.com"]

[Event "Titled Tuesday Blitz January 10 Late 2023"]
[White "Klose, Eli"]
[Black "Kazakouski, Valery"]
[WhiteFideId "16242955"]
[BlackFideId "13507443"]
[WhiteElo "1519"]
[BlackElo "2539"]
[Result "1/2-1/2"]
[Round "09"]
[TimeControl "180+2"]
[Date "2023.01.10"]
[WhiteClock "0:00:14"]
[BlackClock "0:00:04"]

1. e4 {[%clk 0:00:00]}  c5 {[%clk 0:00:00]} 2. Nc3 {[%clk 0:03:00]}  Nc6 {[%clk 0:02:59]} 3. d3 {[%clk 0:02:54]}  g6 {[%clk 0:02:59]} 4. g3 {[%clk 0:02:55]}  Bg7 {[%clk 0:02:59]} 5. Bg2 {[%clk 0:02:55]}  e6 {[%clk 0:02:59]} 6. Be3 {[%clk 0:02:55]}  d6 {[%clk 0:03:00]} 7. Qd2 {[%clk 0:02:54]}  Rb8 {[%clk 0:03:00]} 8. Nge2 {[%clk 0:02:55]}  b5 {[%clk 0:02:59]} 9. O-O {[%clk 0:02:55]}  Nd4 {[%clk 0:02:58]} 10. Nd1 {[%clk 0:02:52]}  Ne7 {[%clk 0:02:54]} 11. c3 {[%clk 0:02:50]}  Nxe2+ {[%clk 0:02:50]} 12. Qxe2 {[%clk 0:02:44]}  b4 {[%clk 0:02:48]} 13. Qd2 {[%clk 0:02:45]}  Ba6 {[%clk 0:02:36]} 14. c4 {[%clk 0:02:43]}  h5 {[%clk 0:02:32]} 15. Bg5 {[%clk 0:02:41]}  Qc7 {[%clk 0:02:30]} 16. a3 {[%clk 0:02:36]}  Bc8 {[%clk 0:02:22]} 17. axb4 {[%clk 0:02:20]}  Rxb4 {[%clk 0:02:08]} 18. Nc3 {[%clk 0:02:19]}  Bd7 {[%clk 0:02:09]} 19. Ra2 {[%clk 0:02:18]}  f6 {[%clk 0:02:06]} 20. Be3 {[%clk 0:02:12]}  f5 {[%clk 0:01:36]} 21. Rfa1 {[%clk 0:02:06]}  Nc8 {[%clk 0:01:27]} 22. exf5 {[%clk 0:02:04]}  gxf5 {[%clk 0:01:27]} 23. d4 {[%clk 0:01:57]}  Rxc4 {[%clk 0:01:28]} 24. dxc5 {[%clk 0:01:46]}  dxc5 {[%clk 0:00:58]} 25. Rd1 {[%clk 0:01:28]}  Nb6 {[%clk 0:00:58]} 26. Ra6 {[%clk 0:01:25]}  Bd4 {[%clk 0:00:49]} 27. Bf4 {[%clk 0:01:11]}  e5 {[%clk 0:00:29]} 28. Re1 {[%clk 0:00:37]}  O-O {[%clk 0:00:29]} 29. Rxb6 {[%clk 0:00:31]}  Qxb6 {[%clk 0:00:16]} 30. Bd5+ {[%clk 0:00:28]}  Be6 {[%clk 0:00:14]} 31. Bxc4 {[%clk 0:00:27]}  Bxc4 {[%clk 0:00:14]} 32. Bxe5 {[%clk 0:00:24]}  f4 {[%clk 0:00:14]} 33. Bxf4 {[%clk 0:00:25]}  Qf6 {[%clk 0:00:10]} 34. Be3 {[%clk 0:00:21]}  Ba6 {[%clk 0:00:09]} 35. Rd1 {[%clk 0:00:21]}  Bxc3 {[%clk 0:00:04]} 36. bxc3 {[%clk 0:00:20]}  Bb7 {[%clk 0:00:03]} 37. Bh6 {[%clk 0:00:19]}  Re8 {[%clk 0:00:03]} 38. Qg5+ {[%clk 0:00:06]}  Qxg5 {[%clk 0:00:02]} 39. Bxg5 {[%clk 0:00:05]}  a5 {[%clk 0:00:02]} 40. Be3 {[%clk 0:00:06]}  c4 {[%clk 0:00:03]} 41. Ra1 {[%clk 0:00:06]}  Ra8 {[%clk 0:00:02]} 42. Ra4 {[%clk 0:00:06]}  Bd5 {[%clk 0:00:02]} 43. Bd4 {[%clk 0:00:05]}  Bc6 {[%clk 0:00:02]} 44. Rxc4 {[%clk 0:00:05]}  Bf3 {[%clk 0:00:01]} 45. Rc5 {[%clk 0:00:04]}  a4 {[%clk 0:00:01]} 46. Rg5+ {[%clk 0:00:05]}  Kh7 {[%clk 0:00:01]} 47. c4 {[%clk 0:00:06]}  a3 {[%clk 0:00:02]} 48. Rf5 {[%clk 0:00:07]}  Be4 {[%clk 0:00:01]} 49. Rf4 {[%clk 0:00:08]}  Bd3 {[%clk 0:00:02]} 50. Ba1 {[%clk 0:00:08]}  a2 {[%clk 0:00:02]} 51. Kg2 {[%clk 0:00:06]}  Rb8 {[%clk 0:00:02]} 52. Rd4 {[%clk 0:00:07]}  Bf5 {[%clk 0:00:02]} 53. Rd2 {[%clk 0:00:07]}  Be6 {[%clk 0:00:01]} 54. Rxa2 {[%clk 0:00:07]}  Bxc4 {[%clk 0:00:01]} 55. Ra7+ {[%clk 0:00:07]}  Kg6 {[%clk 0:00:01]} 56. h3 {[%clk 0:00:07]}  Bd5+ {[%clk 0:00:02]} 57. f3 {[%clk 0:00:07]}  Rb1 {[%clk 0:00:02]} 58. g4 {[%clk 0:00:07]}  hxg4 {[%clk 0:00:02]} 59. hxg4 {[%clk 0:00:08]}  Rb3 {[%clk 0:00:02]} 60. Ra6+ {[%clk 0:00:08]}  Kh7 {[%clk 0:00:03]} 61. Rf6 {[%clk 0:00:07]}  Ra3 {[%clk 0:00:02]} 62. Be5 {[%clk 0:00:08]}  Re3 {[%clk 0:00:03]} 63. Rf5 {[%clk 0:00:08]}  Be6 {[%clk 0:00:03]} 64. Bf4 {[%clk 0:00:08]}  Re2+ {[%clk 0:00:03]} 65. Kg3 {[%clk 0:00:07]}  Bxf5 {[%clk 0:00:02]} 66. gxf5 {[%clk 0:00:07]}  Re8 {[%clk 0:00:02]} 67. Bg5 {[%clk 0:00:08]}  Kg8 {[%clk 0:00:02]} 68. Kf4 {[%clk 0:00:08]}  Kf7 {[%clk 0:00:03]} 69. Bh4 {[%clk 0:00:09]}  Rc8 {[%clk 0:00:04]} 70. Kg4 {[%clk 0:00:09]}  Ra8 {[%clk 0:00:05]} 71. f4 {[%clk 0:00:09]}  Ra6 {[%clk 0:00:06]} 72. Bg5 {[%clk 0:00:10]}  Ra4 {[%clk 0:00:07]} 73. f6 {[%clk 0:00:10]}  Ra2 {[%clk 0:00:07]} 74. Kf5 {[%clk 0:00:11]}  Rc2 {[%clk 0:00:08]} 75. Kg4 {[%clk 0:00:11]}  Rc5 {[%clk 0:00:09]} 76. Kf3 {[%clk 0:00:11]}  Rd5 {[%clk 0:00:10]} 77. Ke4 {[%clk 0:00:12]}  Rb5 {[%clk 0:00:09]} 78. Kf3 {[%clk 0:00:12]}  Rb1 {[%clk 0:00:10]} 79. Kg4 {[%clk 0:00:12]}  Rf1 {[%clk 0:00:10]} 80. Kg3 {[%clk 0:00:13]}  Re1 {[%clk 0:00:11]} 81. Kf3 {[%clk 0:00:13]}  Re6 {[%clk 0:00:11]} 82. Kg4 {[%clk 0:00:13]}  Re8 {[%clk 0:00:11]} 83. Kf5 {[%clk 0:00:13]}  Rc8 {[%clk 0:00:12]} 84. Kg4 {[%clk 0:00:13]}  Kg6 {[%clk 0:00:13]} 85. Kf3 {[%clk 0:00:14]}  Kf5 {[%clk 0:00:13]} 86. Ke3 {[%clk 0:00:14]}  Re8+ {[%clk 0:00:13]} 87. Kd4 {[%clk 0:00:14]}  Kg6 {[%clk 0:00:13]} 88. Kd5 {[%clk 0:00:15]}  Kf7 {[%clk 0:00:10]} 89. Kd6 {[%clk 0:00:15]}  Re2 {[%clk 0:00:10]} 90. Kc5 {[%clk 0:00:16]}  Rd2 {[%clk 0:00:10]} 91. Kc4 {[%clk 0:00:16]}  Rd1 {[%clk 0:00:09]} 92. Kc3 {[%clk 0:00:16]}  Rd7 {[%clk 0:00:10]} 93. Kc4 {[%clk 0:00:17]}  Ke6 {[%clk 0:00:09]} 94. Kc5 {[%clk 0:00:17]}  Rd5+ {[%clk 0:00:10]} 95. Kc6 {[%clk 0:00:18]}  Rd7 {[%clk 0:00:10]} 96. Kc5 {[%clk 0:00:18]}  Kf5 {[%clk 0:00:11]} 97. Kc6 {[%clk 0:00:18]}  Rf7 {[%clk 0:00:10]} 98. Kd6 {[%clk 0:00:18]}  Rh7 {[%clk 0:00:10]} 99. Kd5 {[%clk 0:00:19]}  Rd7+ {[%clk 0:00:10]} 100. Kc6 {[%clk 0:00:13]}  Ra7 {[%clk 0:00:06]} 101. Kd6 {[%clk 0:00:13]}  Rf7 {[%clk 0:00:05]} 102. Kd5 {[%clk 0:00:14]}  Rd7+ {[%clk 0:00:04]} 103. Kc6 {[%clk 0:00:14]} 1/2-1/2


[Site "https://www.chess.com"]

[Event "Titled Tuesday Blitz January 10 Late 2023"]
[White "Jaracz, Pawel"]
[Black "Pham, Khoi"]
[WhiteFideId "1102222"]
[BlackFideId "1054988"]
[WhiteElo "2467"]
[BlackElo "2355"]
[Result "0-1"]
[Round "09"]
[TimeControl "180+2"]
[Date "2023.01.10"]
[WhiteClock "0:00:18"]
[BlackClock "0:00:08"]

1. e4 {[%clk 0:00:00]}  c5 {[%clk 0:00:00]} 2. Nf3 {[%clk 0:03:00]}  e6 {[%clk 0:02:58]} 3. d4 {[%clk 0:02:58]}  cxd4 {[%clk 0:02:59]} 4. Nxd4 {[%clk 0:02:58]}  Nf6 {[%clk 0:03:00]} 5. Nc3 {[%clk 0:02:58]}  Nc6 {[%clk 0:03:00]} 6. Nxc6 {[%clk 0:02:58]}  bxc6 {[%clk 0:03:00]} 7. e5 {[%clk 0:02:58]}  Nd5 {[%clk 0:03:01]} 8. Ne4 {[%clk 0:02:58]}  Qc7 {[%clk 0:03:02]} 9. f4 {[%clk 0:02:58]}  Rb8 {[%clk 0:03:02]} 10. Bd3 {[%clk 0:02:58]}  f5 {[%clk 0:03:02]} 11. exf6 {[%clk 0:02:55]}  Nxf6 {[%clk 0:02:54]} 12. O-O {[%clk 0:02:43]}  d5 {[%clk 0:02:52]} 13. Nxf6+ {[%clk 0:02:37]}  gxf6 {[%clk 0:02:48]} 14. c4 {[%clk 0:02:20]}  Bc5+ {[%clk 0:02:49]} 15. Kh1 {[%clk 0:02:20]}  O-O {[%clk 0:02:38]} 16. b3 {[%clk 0:02:20]}  Ba6 {[%clk 0:02:38]} 17. Qc2 {[%clk 0:02:01]}  Bd4 {[%clk 0:02:07]} 18. Rb1 {[%clk 0:01:54]}  e5 {[%clk 0:02:06]} 19. Ba3 {[%clk 0:01:52]}  Rf7 {[%clk 0:02:03]} 20. Bf5 {[%clk 0:01:30]}  Re8 {[%clk 0:01:54]} 21. Rbd1 {[%clk 0:01:28]}  dxc4 {[%clk 0:01:46]} 22. bxc4 {[%clk 0:01:24]}  c5 {[%clk 0:01:26]} 23. Be4 {[%clk 0:01:21]}  Bb7 {[%clk 0:01:27]} 24. Rde1 {[%clk 0:01:19]}  Bxe4 {[%clk 0:01:25]} 25. Rxe4 {[%clk 0:01:17]}  f5 {[%clk 0:01:23]} 26. Re2 {[%clk 0:01:09]}  e4 {[%clk 0:01:22]} 27. Qa4 {[%clk 0:01:09]}  Rb8 {[%clk 0:01:22]} 28. h3 {[%clk 0:01:07]}  Rg7 {[%clk 0:01:19]} 29. Bc1 {[%clk 0:01:04]}  Qd7 {[%clk 0:01:14]} 30. Qc2 {[%clk 0:00:55]}  Qb7 {[%clk 0:01:05]} 31. Kh2 {[%clk 0:00:54]}  Qb1 {[%clk 0:00:59]} 32. Qd1 {[%clk 0:00:51]}  Rb4 {[%clk 0:00:54]} 33. Rc2 {[%clk 0:00:22]}  Rbb7 {[%clk 0:00:39]} 34. Qe2 {[%clk 0:00:22]}  Qb6 {[%clk 0:00:16]} 35. g3 {[%clk 0:00:21]}  Qg6 {[%clk 0:00:16]} 36. Qe1 {[%clk 0:00:20]}  Qc6 {[%clk 0:00:15]} 37. Rg2 {[%clk 0:00:18]}  Qa4 {[%clk 0:00:15]} 38. Qe2 {[%clk 0:00:18]}  Rb4 {[%clk 0:00:15]} 39. g4 {[%clk 0:00:18]}  Rxc4 {[%clk 0:00:13]} 40. gxf5 {[%clk 0:00:18]}  Rxg2+ {[%clk 0:00:12]} 41. Qxg2+ {[%clk 0:00:18]}  Kf7 {[%clk 0:00:11]} 42. Qg4 {[%clk 0:00:19]}  Rc2+ {[%clk 0:00:12]} 43. Kh1 {[%clk 0:00:18]}  Qc4 {[%clk 0:00:12]} 44. Qh5+ {[%clk 0:00:18]}  Ke7 {[%clk 0:00:07]} 45. Qxh7+ {[%clk 0:00:18]}  Kd6 {[%clk 0:00:07]} 46. Qg6+ {[%clk 0:00:18]}  Kc7 {[%clk 0:00:08]} 0-1


[Site "https://www.chess.com"]

[Event "Titled Tuesday Blitz January 10 Late 2023"]
[White "Fernandez Guillen, Ernesto J."]
[Black "Chor, Kevin"]
[WhiteFideId "3512428"]
[BlackFideId "2090740"]
[WhiteElo "2477"]
[BlackElo "1944"]
[Result "1-0"]
[Round "09"]
[TimeControl "180+2"]
[Date "2023.01.10"]
[WhiteClock "0:00:39"]
[BlackClock "0:00:08"]

1. e4 {[%clk 0:00:00]}  c5 {[%clk 0:00:00]} 2. Nf3 {[%clk 0:03:00]}  g6 {[%clk 0:02:59]} 3. d4 {[%clk 0:03:00]}  cxd4 {[%clk 0:02:59]} 4. Nxd4 {[%clk 0:03:00]}  Bg7 {[%clk 0:03:00]} 5. Nc3 {[%clk 0:03:01]}  Nc6 {[%clk 0:03:00]} 6. Be3 {[%clk 0:03:01]}  Nf6 {[%clk 0:03:00]} 7. Bc4 {[%clk 0:03:02]}  O-O {[%clk 0:03:00]} 8. Bb3 {[%clk 0:03:01]}  d6 {[%clk 0:03:00]} 9. f3 {[%clk 0:03:01]}  Bd7 {[%clk 0:02:59]} 10. h4 {[%clk 0:03:01]}  Nxd4 {[%clk 0:02:58]} 11. Bxd4 {[%clk 0:03:01]}  Be6 {[%clk 0:02:25]} 12. Qd2 {[%clk 0:03:02]}  b5 {[%clk 0:02:11]} 13. h5 {[%clk 0:02:57]}  b4 {[%clk 0:02:01]} 14. Nd5 {[%clk 0:02:55]}  Bxd5 {[%clk 0:01:59]} 15. Bxd5 {[%clk 0:02:50]}  Rc8 {[%clk 0:01:56]} 16. hxg6 {[%clk 0:02:28]}  hxg6 {[%clk 0:01:35]} 17. O-O-O {[%clk 0:02:26]}  e5 {[%clk 0:01:32]} 18. Be3 {[%clk 0:02:06]}  Nxd5 {[%clk 0:01:08]} 19. Qxd5 {[%clk 0:02:01]}  Qc7 {[%clk 0:01:06]} 20. Rd2 {[%clk 0:01:57]}  Rfd8 {[%clk 0:01:06]} 21. g4 {[%clk 0:01:56]}  a5 {[%clk 0:00:59]} 22. Bh6 {[%clk 0:01:43]}  Qc5 {[%clk 0:00:46]} 23. Bxg7 {[%clk 0:01:03]}  Kxg7 {[%clk 0:00:20]} 24. Rh7+ {[%clk 0:00:51]}  Kxh7 {[%clk 0:00:21]} 25. Qxf7+ {[%clk 0:00:37]}  Kh6 {[%clk 0:00:15]} 26. g5+ {[%clk 0:00:38]}  Kxg5 {[%clk 0:00:15]} 27. Rg2+ {[%clk 0:00:39]}  Kh5 {[%clk 0:00:08]} 28. Qh7# {[%clk 0:00:39]} 1-0


[Site "https://www.chess.com"]

[Event "Titled Tuesday Blitz January 10 Late 2023"]
[White "Osmak, Yuliia"]
[Black "Maksimovic, Bojan"]
[WhiteFideId "14101602"]
[BlackFideId "14408120"]
[WhiteElo "2440"]
[BlackElo "2486"]
[Result "0-1"]
[Round "09"]
[TimeControl "180+2"]
[Date "2023.01.10"]
[WhiteClock "0:00:16"]
[BlackClock "0:00:12"]

1. d4 {[%clk 0:00:00]}  Nf6 {[%clk 0:00:00]} 2. c4 {[%clk 0:02:52]}  c5 {[%clk 0:02:49]} 3. d5 {[%clk 0:02:51]}  b5 {[%clk 0:02:50]} 4. a4 {[%clk 0:02:50]}  b4 {[%clk 0:02:49]} 5. Qc2 {[%clk 0:02:45]}  d6 {[%clk 0:02:48]} 6. e4 {[%clk 0:02:43]}  g6 {[%clk 0:02:46]} 7. f4 {[%clk 0:02:43]}  Bg7 {[%clk 0:02:45]} 8. Nf3 {[%clk 0:02:43]}  O-O {[%clk 0:02:44]} 9. Bd3 {[%clk 0:02:43]}  e6 {[%clk 0:02:41]} 10. O-O {[%clk 0:02:43]}  Re8 {[%clk 0:02:41]} 11. Nbd2 {[%clk 0:02:41]}  Na6 {[%clk 0:02:41]} 12. Rb1 {[%clk 0:02:35]}  b3 {[%clk 0:02:34]} 13. Qxb3 {[%clk 0:02:18]}  Rb8 {[%clk 0:02:31]} 14. Qd1 {[%clk 0:02:17]}  Nb4 {[%clk 0:02:30]} 15. Bc2 {[%clk 0:02:16]}  exd5 {[%clk 0:02:30]} 16. cxd5 {[%clk 0:01:53]}  Nxc2 {[%clk 0:02:24]} 17. Qxc2 {[%clk 0:01:52]}  Nxe4 {[%clk 0:02:23]} 18. Nxe4 {[%clk 0:01:52]}  Rxe4 {[%clk 0:01:48]} 19. Qxe4 {[%clk 0:01:51]}  Bf5 {[%clk 0:01:47]} 20. Qc4 {[%clk 0:01:39]}  Bxb1 {[%clk 0:01:47]} 21. Bd2 {[%clk 0:01:00]}  Rxb2 {[%clk 0:01:45]} 22. Bc3 {[%clk 0:00:57]}  Ba2 {[%clk 0:01:22]} 23. Qd3 {[%clk 0:00:53]}  Rb3 {[%clk 0:01:22]} 24. Qc2 {[%clk 0:00:41]}  Rxc3 {[%clk 0:00:52]} 25. Qxa2 {[%clk 0:00:41]}  Qf6 {[%clk 0:00:36]} 26. Qb2 {[%clk 0:00:41]}  h6 {[%clk 0:00:30]} 27. Qb8+ {[%clk 0:00:33]}  Kh7 {[%clk 0:00:27]} 28. Qxa7 {[%clk 0:00:32]}  Qxf4 {[%clk 0:00:28]} 29. a5 {[%clk 0:00:32]}  Ra3 {[%clk 0:00:27]} 30. a6 {[%clk 0:00:31]}  g5 {[%clk 0:00:27]} 31. Qb7 {[%clk 0:00:28]}  g4 {[%clk 0:00:16]} 32. a7 {[%clk 0:00:25]}  gxf3 {[%clk 0:00:15]} 33. a8=Q {[%clk 0:00:22]}  Bd4+ {[%clk 0:00:13]} 34. Kh1 {[%clk 0:00:19]}  fxg2+ {[%clk 0:00:11]} 35. Kxg2 {[%clk 0:00:18]}  Qg4+ {[%clk 0:00:11]} 36. Kh1 {[%clk 0:00:18]}  Qe4+ {[%clk 0:00:12]} 37. Rf3 {[%clk 0:00:16]}  Qxf3# {[%clk 0:00:12]} 0-1


[Site "https://www.chess.com"]

[Event "Titled Tuesday Blitz January 10 Late 2023"]
[White "Tanenbaum, Zachary"]
[Black "Filgueira, Hernan"]
[WhiteFideId "2060850"]
[BlackFideId "101770"]
[WhiteElo "2261"]
[BlackElo "2283"]
[Result "0-1"]
[Round "09"]
[TimeControl "180+2"]
[Date "2023.01.10"]
[WhiteClock "0:00:04"]
[BlackClock "0:00:47"]

1. e4 {[%clk 0:00:00]}  e6 {[%clk 0:00:00]} 2. d4 {[%clk 0:03:00]}  d5 {[%clk 0:02:59]} 3. Nc3 {[%clk 0:03:00]}  Bb4 {[%clk 0:02:59]} 4. exd5 {[%clk 0:03:01]}  exd5 {[%clk 0:02:58]} 5. Bd3 {[%clk 0:03:01]}  c6 {[%clk 0:02:57]} 6. Nf3 {[%clk 0:03:02]}  Bg4 {[%clk 0:02:55]} 7. O-O {[%clk 0:03:01]}  Ne7 {[%clk 0:02:54]} 8. h3 {[%clk 0:03:00]}  Bh5 {[%clk 0:02:54]} 9. Re1 {[%clk 0:03:00]}  Bg6 {[%clk 0:02:53]} 10. Bf4 {[%clk 0:03:01]}  O-O {[%clk 0:02:52]} 11. Ne5 {[%clk 0:02:15]}  Nd7 {[%clk 0:02:39]} 12. Nxg6 {[%clk 0:01:55]}  Nxg6 {[%clk 0:02:29]} 13. Bg3 {[%clk 0:01:49]}  Re8 {[%clk 0:02:27]} 14. Qf3 {[%clk 0:01:47]}  Qf6 {[%clk 0:02:22]} 15. Qg4 {[%clk 0:01:39]}  Nb6 {[%clk 0:02:21]} 16. h4 {[%clk 0:01:30]}  Bd6 {[%clk 0:02:06]} 17. h5 {[%clk 0:01:28]}  Bxg3 {[%clk 0:01:52]} 18. Qxg3 {[%clk 0:01:27]}  Nf4 {[%clk 0:01:46]} 19. Qg4 {[%clk 0:01:22]}  h6 {[%clk 0:01:40]} 20. g3 {[%clk 0:00:21]}  Ne6 {[%clk 0:01:39]} 21. Ne2 {[%clk 0:00:19]}  Nc7 {[%clk 0:01:38]} 22. Kg2 {[%clk 0:00:17]}  Na4 {[%clk 0:01:24]} 23. b3 {[%clk 0:00:17]}  Nb6 {[%clk 0:01:21]} 24. Qf4 {[%clk 0:00:16]}  Qxf4 {[%clk 0:01:19]} 25. Nxf4 {[%clk 0:00:16]}  Kf8 {[%clk 0:01:17]} 26. Kf1 {[%clk 0:00:17]}  a5 {[%clk 0:01:17]} 27. c3 {[%clk 0:00:16]}  Rxe1+ {[%clk 0:01:16]} 28. Rxe1 {[%clk 0:00:15]}  Re8 {[%clk 0:01:13]} 29. Rxe8+ {[%clk 0:00:14]}  Kxe8 {[%clk 0:01:13]} 30. Ke2 {[%clk 0:00:13]}  Ke7 {[%clk 0:01:13]} 31. Kd2 {[%clk 0:00:14]}  Ne6 {[%clk 0:01:13]} 32. Nxe6 {[%clk 0:00:13]}  fxe6 {[%clk 0:01:12]} 33. Ke3 {[%clk 0:00:12]}  Kf6 {[%clk 0:01:08]} 34. f4 {[%clk 0:00:13]}  Nd7 {[%clk 0:01:08]} 35. g4 {[%clk 0:00:12]}  Nb6 {[%clk 0:01:06]} 36. Kf3 {[%clk 0:00:12]}  Nd7 {[%clk 0:01:05]} 37. Kg3 {[%clk 0:00:12]}  b5 {[%clk 0:01:03]} 38. Kh4 {[%clk 0:00:13]}  b4 {[%clk 0:00:58]} 39. g5+ {[%clk 0:00:13]}  Ke7 {[%clk 0:00:56]} 40. c4 {[%clk 0:00:14]}  c5 {[%clk 0:00:55]} 41. cxd5 {[%clk 0:00:12]}  exd5 {[%clk 0:00:53]} 42. Bb5 {[%clk 0:00:10]}  cxd4 {[%clk 0:00:53]} 43. Bxd7 {[%clk 0:00:08]}  Kxd7 {[%clk 0:00:52]} 44. Kg4 {[%clk 0:00:08]}  d3 {[%clk 0:00:49]} 45. Kf3 {[%clk 0:00:09]}  d2 {[%clk 0:00:48]} 46. Ke2 {[%clk 0:00:08]}  Ke6 {[%clk 0:00:47]} 47. Kxd2 {[%clk 0:00:08]}  Kf5 {[%clk 0:00:48]} 48. gxh6 {[%clk 0:00:08]}  gxh6 {[%clk 0:00:47]} 49. Ke3 {[%clk 0:00:07]}  d4+ {[%clk 0:00:47]} 50. Kxd4 {[%clk 0:00:08]}  Kxf4 {[%clk 0:00:47]} 51. Kc4 {[%clk 0:00:08]}  Kg4 {[%clk 0:00:47]} 52. Kb5 {[%clk 0:00:07]}  Kxh5 {[%clk 0:00:47]} 53. Kxa5 {[%clk 0:00:07]}  Kg5 {[%clk 0:00:48]} 54. Kxb4 {[%clk 0:00:08]}  h5 {[%clk 0:00:49]} 55. a4 {[%clk 0:00:07]}  h4 {[%clk 0:00:50]} 56. a5 {[%clk 0:00:08]}  h3 {[%clk 0:00:50]} 57. Kb5 {[%clk 0:00:08]}  h2 {[%clk 0:00:51]} 58. b4 {[%clk 0:00:09]}  h1=Q {[%clk 0:00:52]} 59. Kb6 {[%clk 0:00:08]}  Qa8 {[%clk 0:00:53]} 60. b5 {[%clk 0:00:08]}  Kf6 {[%clk 0:00:51]} 61. a6 {[%clk 0:00:08]}  Qb8+ {[%clk 0:00:51]} 62. Kc6 {[%clk 0:00:07]}  Ke6 {[%clk 0:00:51]} 63. b6 {[%clk 0:00:07]}  Qc8+ {[%clk 0:00:49]} 64. Kb5 {[%clk 0:00:06]}  Kd5 {[%clk 0:00:48]} 65. a7 {[%clk 0:00:06]}  Qc4+ {[%clk 0:00:48]} 66. Ka5 {[%clk 0:00:04]}  Kc5 {[%clk 0:00:47]} 67. a8=Q {[%clk 0:00:04]}  Qa2# {[%clk 0:00:47]} 0-1


[Site "https://www.chess.com"]

[Event "Titled Tuesday Blitz January 10 Late 2023"]
[White "Skvortsov, Andrei"]
[Black "Sielecki, Christof"]
[WhiteFideId "24108600"]
[BlackFideId "4620437"]
[WhiteElo "2313"]
[BlackElo "2419"]
[Result "0-1"]
[Round "09"]
[TimeControl "180+2"]
[Date "2023.01.10"]
[WhiteClock "0:00:04"]
[BlackClock "0:01:29"]

1. d4 {[%clk 0:00:00]}  d5 {[%clk 0:00:00]} 2. c4 {[%clk 0:03:00]}  e6 {[%clk 0:02:58]} 3. Nc3 {[%clk 0:03:00]}  Nf6 {[%clk 0:02:58]} 4. cxd5 {[%clk 0:02:59]}  exd5 {[%clk 0:02:58]} 5. Bg5 {[%clk 0:02:58]}  c6 {[%clk 0:02:59]} 6. e3 {[%clk 0:02:58]}  h6 {[%clk 0:03:00]} 7. Bh4 {[%clk 0:02:57]}  Be7 {[%clk 0:03:00]} 8. Bd3 {[%clk 0:02:57]}  O-O {[%clk 0:03:01]} 9. Nge2 {[%clk 0:02:56]}  Re8 {[%clk 0:03:01]} 10. O-O {[%clk 0:02:57]}  Nbd7 {[%clk 0:03:01]} 11. Qc2 {[%clk 0:02:57]}  a5 {[%clk 0:02:57]} 12. Rae1 {[%clk 0:02:38]}  b5 {[%clk 0:02:56]} 13. f3 {[%clk 0:02:32]}  Ba6 {[%clk 0:02:55]} 14. Nd1 {[%clk 0:02:32]}  b4 {[%clk 0:02:49]} 15. Nf2 {[%clk 0:02:26]}  Qb6 {[%clk 0:02:39]} 16. Bxa6 {[%clk 0:02:24]}  Qxa6 {[%clk 0:02:17]} 17. Nd3 {[%clk 0:02:11]}  Rac8 {[%clk 0:02:16]} 18. Ne5 {[%clk 0:02:11]}  c5 {[%clk 0:02:14]} 19. Nxd7 {[%clk 0:02:07]}  Nxd7 {[%clk 0:02:06]} 20. Bxe7 {[%clk 0:02:06]}  Rxe7 {[%clk 0:02:07]} 21. Qf5 {[%clk 0:02:04]}  Qe6 {[%clk 0:02:07]} 22. Qxe6 {[%clk 0:01:58]}  fxe6 {[%clk 0:01:53]} 23. dxc5 {[%clk 0:01:50]}  Nxc5 {[%clk 0:01:54]} 24. Rc1 {[%clk 0:01:49]}  Rec7 {[%clk 0:01:54]} 25. Nd4 {[%clk 0:01:49]}  Nd3 {[%clk 0:01:52]} 26. Rxc7 {[%clk 0:01:32]}  Rxc7 {[%clk 0:01:52]} 27. Rd1 {[%clk 0:01:29]}  Nxb2 {[%clk 0:01:53]} 28. Rb1 {[%clk 0:01:04]}  Na4 {[%clk 0:01:39]} 29. Nxe6 {[%clk 0:00:18]}  Rc2 {[%clk 0:01:38]} 30. Nf4 {[%clk 0:00:18]}  Nc3 {[%clk 0:01:38]} 31. Ra1 {[%clk 0:00:13]}  g5 {[%clk 0:01:35]} 32. Nd3 {[%clk 0:00:11]}  Rxa2 {[%clk 0:01:33]} 33. Rxa2 {[%clk 0:00:10]}  Nxa2 {[%clk 0:01:32]} 34. Nb2 {[%clk 0:00:09]}  Nc3 {[%clk 0:01:32]} 35. Kf2 {[%clk 0:00:08]}  a4 {[%clk 0:01:31]} 36. Nd3 {[%clk 0:00:04]}  b3 {[%clk 0:01:31]} 37. Ke1 {[%clk 0:00:04]}  a3 {[%clk 0:01:29]} 0-1


[Site "https://www.chess.com"]